bitfinex-derivatives/quotes_BTCF0:USTF0_20251011
["timestamp","ask_amount","ask_price","bid_price","bid_amount"]
[1760154250955,0.80662333,112060.0,112050.0,0.0891473]
[1760154251155,0.41446957,112060.0,112050.0,0.2437973]
[1760154251460,0.52527897,112060.0,112050.0,0.15465]
[1760154251660,0.59825197,112060.0,112050.0,0.15465]
[1760154252363,0.59825197,112060.0,112050.0,0.16374199]
[1760154252662,0.59825197,112060.0,112050.0,0.15465]
[1760154253162,0.50911257,112060.0,112050.0,0.2437973]
[1760154253559,0.59825197,112060.0,112050.0,0.2437973]
[1760154253863,0.59825197,112060.0,112050.0,0.15465]
[1760154254262,0.95905197,112060.0,112050.0,0.15465]
[1760154254960,1.38422199,112060.0,112050.0,0.12]
[1760154255460,0.1108492,112010.0,112000.0,0.03465]
[1760154255662,0.1108492,112010.0,112000.0,0.14465]
[1760154255663,0.88611877,112010.0,112000.0,0.14465]
[1760154255959,0.88611877,112010.0,112000.0,0.11]
[1760154256262,1.24691877,112010.0,112000.0,0.11]
[1760154256464,1.24691877,112010.0,112000.0,0.14465]
[1760154256665,1.27206813,112010.0,112000.0,0.11]
[1760154257053,0.1108571,112000.0,111990.0,0.0133]
[1760154257258,0.49734967,112000.0,111990.0,0.12]
[1760154258559,0.1108651,111990.0,111980.0,0.0133]
[1760154258759,0.02167,111980.0,111970.0,0.03465]
[1760154259065,0.4716731,111980.0,111970.0,0.16465]
[1760154259266,0.4716731,111980.0,111970.0,0.253861]
[1760154259862,0.4716731,111980.0,111970.0,0.16465]
[1760154260871,0.38247,111980.0,111970.0,0.16465]
[1760154262075,0.38247,111980.0,111970.0,0.2538609]
[1760154262566,0.3608,111980.0,111970.0,0.6538609]
[1760154262772,0.07308239,111980.0,111970.0,1.0146609]
[1760154262961,0.77526957,112000.0,111990.0,0.03587]
[1760154262962,0.86445807,112000.0,111990.0,0.03587]
[1760154263167,0.77526957,112000.0,111990.0,0.245065]
[1760154263362,0.3608,112020.0,112010.0,0.1250491]
[1760154263565,0.40980098,112020.0,112010.0,0.17587]
[1760154263772,0.49897208,112020.0,112010.0,0.14]
[1760154264268,0.91344165,112020.0,112010.0,0.14]
[1760154265058,0.92093165,112020.0,112010.0,0.14]
[1760154265770,1.39234735,112020.0,112010.0,0.14]
[1760154266267,1.38585735,112020.0,112010.0,0.14]
[1760154266862,1.38585735,112020.0,112010.0,0.17587]
[1760154267265,0.98585735,112020.0,112010.0,0.17587]
[1760154267467,0.4332157,112020.0,112010.0,0.6650491]
[1760154267667,0.0724157,112020.0,112010.0,0.6740233]
[1760154268171,0.0724157,112020.0,112010.0,1.0348233]
[1760154268361,0.0724157,112020.0,112010.0,0.6740233]
[1760154269778,0.4332157,112020.0,112010.0,0.6740233]
[1760154271972,0.0724157,112020.0,112010.0,0.6740233]
[1760154272877,0.001,112020.0,112010.0,1.0348233]
[1760154273076,0.3608,112050.0,112040.0,0.03587]
[1760154273277,0.38893666,112050.0,112040.0,0.2650252]
[1760154273774,0.45865744,112050.0,112040.0,0.2650252]
[1760154274278,0.09785744,112050.0,112040.0,0.2650252]
[1760154274473,0.09985744,112050.0,112040.0,0.6650252]
[1760154274868,0.07172078,112050.0,112040.0,1.0258252]
[1760154275072,0.07172078,112050.0,112040.0,0.6650252]
[1760154275376,0.46065096,112050.0,112040.0,0.2650252]
[1760154276075,0.48278096,112050.0,112040.0,0.2650252]
[1760154276575,0.48078096,112050.0,112040.0,0.2660252]
[1760154276976,0.48078096,112050.0,112040.0,0.2650252]
[1760154277176,0.56992826,112050.0,112040.0,0.17687]
[1760154277572,0.96992826,112050.0,112040.0,0.14]
[1760154280672,0.1112932,112030.0,112020.0,0.03587]
[1760154280879,0.1113012,112020.0,112010.0,0.03587]
[1760154281174,0.50023138,112020.0,112010.0,0.14308]
[1760154281477,0.50023138,112020.0,112010.0,0.13]
[1760154281977,0.90023138,112020.0,112010.0,0.13]
[1760154282181,0.1113172,112000.0,111990.0,0.04504154]
[1760154282478,0.4721172,112000.0,111990.0,0.16504154]
[1760154282868,0.50075735,112000.0,111990.0,0.16504154]
[1760154284280,0.86155735,112000.0,111990.0,0.16504154]
[1760154284585,0.86155735,112000.0,111990.0,0.15587]
[1760154285282,0.41157015,112000.0,111990.0,0.25392875]
[1760154285471,0.50075725,112000.0,111990.0,0.25392875]
[1760154285672,0.41157015,112000.0,111990.0,0.25392875]
[1760154286180,0.50075725,112000.0,111990.0,0.15587]
[1760154288678,0.38944015,112000.0,111990.0,0.6450651]
[1760154288876,0.4721137,112010.0,112000.0,0.03587]
[1760154289077,0.50121881,112010.0,112000.0,0.15587]
[1760154290784,0.50121881,112010.0,112000.0,0.13308]
[1760154291082,0.50121881,112010.0,112000.0,0.15593]
[1760154291681,0.50121881,112010.0,112000.0,0.13308]
[1760154291981,0.91568838,112010.0,112000.0,0.13308]
[1760154292181,0.92797838,112010.0,112000.0,0.12]
[1760154292578,0.92897838,112010.0,112000.0,0.12]
[1760154293076,0.50221881,112010.0,112000.0,0.15456]
[1760154293278,0.91668838,112010.0,112000.0,0.2437471]
[1760154293480,0.91668838,112010.0,112000.0,0.15456]
[1760154294786,0.91668838,112010.0,112000.0,0.2437471]
[1760154295485,0.91668838,112010.0,112000.0,0.12]
[1760154296185,0.91668838,112010.0,111970.0,0.6630893]
[1760154296186,0.111913,111980.0,111970.0,0.01308]
[1760154296478,0.111913,111980.0,111960.0,0.10251955]
[1760154296479,0.111921,111970.0,111960.0,0.03463605]
[1760154296684,0.91629568,111970.0,111960.0,0.17463605]
[1760154297690,0.91629568,111970.0,111960.0,0.14007605]
[1760154298185,0.89913877,111970.0,111960.0,0.26385505]
[1760154298376,0.1011592,111970.0,111960.0,0.66385505]
[1760154298582,0.87642877,111970.0,111960.0,0.66385505]
[1760154298981,0.51562877,111970.0,111960.0,0.66385505]
[1760154299289,0.51562877,111970.0,111960.0,1.02465505]
[1760154299490,0.51577774,111970.0,111960.0,1.02465505]
[1760154300188,0.48652366,111970.0,111960.0,1.02465505]
[1760154300390,0.3608,111990.0,111980.0,0.123763]
[1760154300391,0.41446957,111990.0,111980.0,0.123763]
[1760154300586,0.44372357,111990.0,111980.0,0.243763]
[1760154300981,0.390054,111990.0,111980.0,0.243763]
[1760154301183,0.82723357,111990.0,111980.0,0.243763]
[1760154301388,0.44372357,111990.0,111980.0,0.643763]
[1760154301589,0.4848413,111990.0,111980.0,0.643763]
[1760154301892,0.8683513,111990.0,111980.0,0.244763]
[1760154302284,0.98604152,111990.0,111980.0,0.244763]
[1760154302483,0.89684642,111990.0,111980.0,0.243763]
[1760154303694,0.89784642,111990.0,111980.0,0.243763]
[1760154303987,0.09986685,111990.0,111980.0,0.643763]
[1760154304192,0.46066685,111990.0,111980.0,0.243763]
[1760154304395,0.09986685,111990.0,111980.0,0.643763]
[1760154304896,0.46066685,111990.0,111980.0,0.643763]
[1760154305091,0.46166685,111990.0,111980.0,0.643763]
[1760154305284,0.57357195,111990.0,111980.0,0.55456]
[1760154305482,0.57357195,111990.0,111980.0,0.15456]
[1760154305892,0.57257195,111990.0,111980.0,0.15456]
[1760154306095,0.57457195,111990.0,111980.0,0.15456]
[1760154307101,0.98686195,111990.0,111980.0,0.12]
[1760154307700,1.01808896,111990.0,111980.0,0.12]
[1760154308099,1.06503289,111990.0,111980.0,0.12]
[1760154308304,0.111921,111970.0,111960.0,7.605e-05]
[1760154308498,1.27648569,111970.0,111960.0,7.605e-05]
[1760154309002,1.27648569,111970.0,111960.0,0.01330605]
[1760154309195,1.3077127,111970.0,111960.0,0.01330605]
[1760154309502,1.24649125,111970.0,111960.0,0.01330605]
[1760154309698,1.24749125,111970.0,111960.0,0.01330605]
[1760154309891,1.24749125,111970.0,111960.0,0.12385505]
[1760154311104,1.24649125,111970.0,111960.0,0.13385505]
[1760154311399,1.24749125,111970.0,111960.0,0.13385505]
[1760154313100,1.24749125,111970.0,111960.0,0.04463605]
[1760154314000,1.24749125,111970.0,111960.0,0.01007605]
[1760154314796,1.24749125,111970.0,111960.0,0.04463605]
[1760154316096,1.24749125,111970.0,111960.0,0.01007605]
[1760154316799,1.66320817,111970.0,111960.0,0.01007605]
[1760154317602,1.66320817,111970.0,111960.0,7.605e-05]
[1760154318103,1.30996005,111970.0,111960.0,7.605e-05]
[1760154318303,1.66320817,111970.0,111960.0,7.605e-05]
[1760154318794,1.61626424,111970.0,111960.0,7.605e-05]
[1760154320103,1.61526424,111970.0,111960.0,7.605e-05]
[1760154320404,1.61726424,111970.0,111960.0,7.605e-05]
[1760154320606,1.67961114,111970.0,111960.0,7.605e-05]
[1760154321005,1.61726424,111970.0,111960.0,7.605e-05]
[1760154321301,1.21726424,111970.0,111960.0,0.03428605]
[1760154321501,1.27961114,111970.0,111960.0,0.03428605]
[1760154321900,1.27961114,111970.0,111960.0,7.605e-05]
[1760154322104,1.27861114,111970.0,111960.0,7.605e-05]
[1760154322399,1.27861114,111970.0,111960.0,0.03428605]
[1760154323308,1.26306656,111970.0,111960.0,7.605e-05]
[1760154324410,1.61626424,111970.0,111960.0,7.605e-05]
[1760154325309,1.61526424,111970.0,111960.0,7.605e-05]
[1760154325507,1.61626424,111970.0,111960.0,7.605e-05]
[1760154325713,1.69438094,111970.0,111960.0,7.605e-05]
[1760154325900,1.95248094,111970.0,111960.0,7.605e-05]
[1760154326101,0.1110549,111940.0,111930.0,0.03473]
[1760154326306,0.54716647,111940.0,111930.0,0.04473]
[1760154326706,0.54716647,111940.0,111930.0,0.01]
[1760154327107,0.54724252,111940.0,111930.0,0.01]
[1760154327307,0.54724252,111940.0,111930.0,0.02378]
[1760154327814,0.55373252,111940.0,111930.0,0.01]
[1760154328110,0.55372364,111940.0,111930.0,0.01]
[1760154328315,0.50691607,111940.0,111930.0,0.01]
[1760154328510,0.50791607,111940.0,111930.0,0.01]
[1760154328905,0.54822202,111940.0,111930.0,0.04679]
[1760154329110,0.54821649,111940.0,111930.0,0.04679]
[1760154329310,0.54821649,111940.0,111930.0,0.02378]
[1760154329908,0.54821649,111940.0,111930.0,0.04679]
[1760154330104,0.54821649,111940.0,111930.0,0.01]
[1760154330312,0.54821649,111940.0,111930.0,0.04679]
[1760154330716,0.54821649,111940.0,111930.0,0.01]
[1760154332112,0.54818733,111940.0,111930.0,0.01]
[1760154332314,0.50142607,111940.0,111930.0,0.01]
[1760154332718,0.563848,111940.0,111930.0,0.01]
[1760154332918,0.50142607,111940.0,111930.0,0.01]
[1760154333318,0.563848,111940.0,111930.0,0.01]
[1760154333915,0.50142607,111940.0,111930.0,0.01]
[1760154334811,0.50142607,111940.0,111930.0,0.03301]
[1760154335017,0.50142607,111940.0,111930.0,0.04679]
[1760154335822,0.50142607,111940.0,111930.0,0.01]
[1760154336122,0.54821787,111940.0,111930.0,0.01]
[1760154336519,0.50142607,111940.0,111930.0,0.01]
[1760154336720,0.54823053,111940.0,111930.0,0.04679]
[1760154337822,0.54723053,111940.0,111930.0,0.04679]
[1760154338018,0.54823053,111940.0,111930.0,0.04679]
[1760154338618,0.54823053,111940.0,111930.0,0.1360324]
[1760154339726,0.45899563,111940.0,111930.0,0.1360324]
[1760154340020,0.12941536,111940.0,111930.0,0.5360324]
[1760154340225,0.4434109,111940.0,111930.0,0.1360324]
[1760154340425,0.45899563,111940.0,111930.0,0.1360324]
[1760154340723,0.49021867,111940.0,111930.0,0.1360324]
[1760154341124,0.45899563,111940.0,111930.0,0.1360324]
[1760154341326,0.54723003,111940.0,111930.0,0.01]
[1760154341520,0.53265193,111940.0,111930.0,0.01]
[1760154342225,0.53265193,111940.0,111930.0,0.04679]
[1760154344526,0.53165193,111940.0,111930.0,0.01]
[1760154344717,0.53265193,111940.0,111930.0,0.01]
[1760154345626,0.54823003,111940.0,111930.0,0.01]
[1760154346026,0.50142557,111940.0,111930.0,0.01]
[1760154346226,0.53266567,111940.0,111930.0,0.04679]
[1760154346428,0.50142557,111940.0,111930.0,0.04679]
[1760154346628,0.50142557,111940.0,111930.0,0.01]
[1760154347027,0.54823003,111940.0,111930.0,0.03301]
[1760154347231,0.54823003,111940.0,111930.0,0.04679]
[1760154347432,0.54823003,111940.0,111930.0,0.01]
[1760154348132,0.54723003,111940.0,111930.0,0.01]
[1760154348333,0.54823003,111940.0,111930.0,0.01]
[1760154349233,0.54823003,111940.0,111930.0,0.03301]
[1760154349435,0.54823003,111940.0,111930.0,0.04679]
[1760154350031,0.54823003,111940.0,111930.0,0.01]
[1760154350931,0.69633003,111940.0,111930.0,0.01]
[1760154351132,0.5326792,111940.0,111930.0,0.01]
[1760154351437,0.54823003,111940.0,111930.0,0.01]
[1760154352134,0.54947311,111940.0,111930.0,0.01]
[1760154353135,0.54947311,111940.0,111930.0,0.04594]
[1760154356436,0.46023871,111940.0,111930.0,0.1351806]
[1760154356637,0.90063871,111940.0,111930.0,0.1351806]
[1760154356840,0.93193542,111940.0,111930.0,0.1351806]
[1760154357041,0.90063871,111940.0,111930.0,0.1351806]
[1760154357447,0.98987131,111940.0,111930.0,0.1351806]
[1760154357639,0.54947131,111940.0,111930.0,0.1351806]
[1760154357941,0.54847131,111940.0,111930.0,0.1351806]
[1760154358141,0.18867131,111940.0,111930.0,0.1351806]
[1760154358342,0.08393909,111940.0,111930.0,0.5351806]
[1760154358936,0.53397169,111940.0,111930.0,0.5351806]
[1760154359137,0.44473909,111940.0,111930.0,0.5351806]
[1760154359437,0.53397169,111940.0,111930.0,0.44594]
[1760154359632,0.58077615,111940.0,111930.0,0.44594]
[1760154359837,0.53397169,111940.0,111930.0,0.44594]
[1760154360343,0.58077615,111940.0,111930.0,0.44594]
[1760154360543,0.53297169,111940.0,111930.0,0.44594]
[1760154360740,0.53397169,111940.0,111930.0,0.535181]
[1760154360936,0.53397169,111940.0,111930.0,0.04594]
[1760154361343,0.53397169,111940.0,111930.0,0.135181]
[1760154361744,0.17317169,111940.0,111930.0,0.535181]
[1760154362038,0.17317169,111940.0,111930.0,0.44594]
[1760154362039,0.53397169,111940.0,111930.0,0.44594]
[1760154363239,0.50266685,111940.0,111930.0,0.44594]
[1760154363445,0.50266685,111940.0,111930.0,0.04594]
[1760154366143,0.50266685,111940.0,111930.0,0.44594]
[1760154366547,0.50266685,111940.0,111930.0,0.535181]
[1760154367041,0.05263425,111940.0,111930.0,0.535181]
[1760154367547,0.50166725,111940.0,111930.0,0.44594]
[1760154367739,0.50266725,111940.0,111930.0,0.44594]
[1760154367938,0.41343425,111940.0,111930.0,0.535181]
[1760154368136,0.05263425,111940.0,111930.0,0.535181]
[1760154371844,0.49303425,111940.0,111930.0,0.535181]
[1760154373446,0.47121425,111940.0,111930.0,0.895981]
[1760154374146,0.49395425,111940.0,111930.0,0.135181]
[1760154375539,0.05355425,111940.0,111930.0,0.135181]
[1760154375740,0.03081425,111940.0,111930.0,0.535181]
[1760154376246,0.03081425,111940.0,111930.0,0.895981]
[1760154378238,0.03081425,111940.0,111930.0,0.535181]
[1760154378643,0.05355425,111940.0,111930.0,0.535181]
[1760154378843,0.05355425,111940.0,111930.0,0.895981]
[1760154379048,0.05355425,111940.0,111930.0,0.135181]
[1760154379239,0.41435425,111940.0,111930.0,0.135181]
[1760154379451,0.05355425,111940.0,111930.0,0.135181]
[1760154380651,0.03081425,111940.0,111930.0,0.135181]
[1760154382058,0.03113313,111940.0,111930.0,0.135181]
[1760154383353,0.03113313,111940.0,111930.0,0.495981]
[1760154383754,0.03113313,111940.0,111930.0,0.895981]
[1760154386458,0.41369313,111940.0,111930.0,0.135181]
[1760154387957,0.39193313,111940.0,111930.0,0.135181]
[1760154388458,0.41369313,111940.0,111930.0,0.135181]
[1760154389156,0.39193313,111940.0,111930.0,0.135181]
[1760154389353,0.41369313,111940.0,111930.0,0.135181]
[1760154392759,0.39193313,111940.0,111930.0,0.135181]
[1760154393155,0.03113313,111940.0,111930.0,0.895981]
[1760154393362,0.00107605,111940.0,111930.0,0.895981]
[1760154393559,0.05306484,111970.0,111960.0,0.1246183]
[1760154393763,0.41275967,111970.0,111960.0,0.2446183]
[1760154394656,0.50196997,111970.0,111960.0,0.2446183]
[1760154394856,0.90396997,111970.0,111960.0,0.1554]
[1760154395061,0.90496997,111970.0,111960.0,0.1554]
[1760154395962,0.90496997,111970.0,111960.0,0.12]
[1760154395963,1.32002382,111970.0,111960.0,0.12]
[1760154397159,0.02176,111950.0,111940.0,0.1246298]
[1760154397359,0.79761385,111950.0,111940.0,0.2446298]
[1760154397562,0.82789968,111950.0,111940.0,0.2446298]
[1760154398066,0.3608,111960.0,111950.0,0.1246262]
[1760154398261,0.4128453,111960.0,111950.0,0.2446262]
[1760154399166,0.0520453,111960.0,111950.0,0.2446262]
[1760154399361,0.0302853,111960.0,111950.0,0.2446262]
[1760154399864,0.0312853,111960.0,111950.0,0.6054262]
[1760154400464,0.001,111960.0,111950.0,0.6446262]
[1760154400858,0.05289648,111960.0,111950.0,0.6446262]
[1760154401759,0.03113648,111960.0,111950.0,0.6446262]
[1760154402467,0.03113648,111960.0,111950.0,0.2446262]
[1760154403466,0.001,111960.0,111950.0,0.2446262]
[1760154404159,0.3608,111980.0,111960.0,0.1020982]
[1760154404364,0.86798558,111990.0,111980.0,0.1246023]
[1760154404565,0.89786161,111990.0,111980.0,0.2146023]
[1760154405668,0.89786161,111990.0,111980.0,0.1254]
[1760154405967,0.89786161,111990.0,111980.0,0.2146023]
[1760154406169,0.89886161,111990.0,111980.0,0.2146023]
[1760154407165,0.89886161,111990.0,111980.0,0.22354994]
[1760154407770,0.48380776,111990.0,111980.0,0.22354994]
[1760154407965,0.10124776,111990.0,111980.0,0.62354994]
[1760154408169,0.10124776,111990.0,111980.0,0.98434994]
[1760154408670,0.07137173,111990.0,111980.0,0.98434994]
[1760154411967,0.83044869,112030.0,112020.0,0.03443]
[1760154412169,0.02945683,112030.0,112020.0,0.2536004]
[1760154412368,0.02945683,112030.0,112020.0,0.6144004]
[1760154412568,0.79914385,112050.0,112040.0,0.1235848]
[1760154412771,0.79914385,112050.0,112040.0,0.2335848]
[1760154412772,0.82852278,112050.0,112040.0,0.2335848]
[1760154413165,0.82852278,112050.0,112040.0,0.14443]
[1760154413367,0.90261583,112050.0,112040.0,0.04443]
[1760154413564,1.31766968,112050.0,112040.0,0.01]
[1760154413770,1.31766968,112050.0,112030.0,0.01292]
[1760154413771,0.1247348,112040.0,112020.0,0.01292]
[1760154413972,1.25210665,112030.0,112020.0,0.06443]
[1760154414173,1.16294385,112030.0,112020.0,0.06443]
[1760154414372,0.83101117,112030.0,112020.0,0.1536007]
[1760154414870,0.8991994,112030.0,112020.0,0.2036007]
[1760154415177,0.9011994,112030.0,112020.0,0.2036007]
[1760154415767,0.5433994,112030.0,112020.0,0.2036007]
[1760154416071,0.9041994,112030.0,112020.0,0.2036007]
[1760154416765,0.48914555,112030.0,112020.0,0.2036007]
[1760154416965,0.12834555,112030.0,112020.0,0.2036007]
[1760154417269,0.5433994,112030.0,112020.0,0.2036007]
[1760154417768,0.10505555,112030.0,112020.0,0.2036007]
[1760154417974,0.10505555,112030.0,112020.0,0.6036007]
[1760154418267,0.03386732,112030.0,112020.0,0.9644007]
[1760154420572,0.03386732,112030.0,112020.0,0.5644007]
[1760154422476,0.03386732,112030.0,112020.0,0.2036007]
[1760154422781,0.03386732,112030.0,112020.0,0.5644007]
[1760154422978,0.39210484,112050.0,112040.0,0.0891548]
[1760154423183,0.41959502,112050.0,112040.0,0.2535848]
[1760154423478,0.05879502,112050.0,112040.0,0.26242527]
[1760154423667,0.08208502,112050.0,112040.0,0.26242527]
[1760154424074,0.08508502,112050.0,112040.0,0.26242527]
[1760154424274,0.08708502,112050.0,112040.0,0.26242527]
[1760154424472,0.53703182,112050.0,112040.0,0.17327047]
[1760154424671,0.62227821,112050.0,112040.0,0.17327047]
[1760154424875,1.02227821,112050.0,112040.0,0.16035047]
[1760154425078,1.03777783,112050.0,112040.0,0.13]
[1760154425973,0.54863103,112050.0,112040.0,0.15151]
[1760154426177,0.53570103,112050.0,112040.0,0.16443]
[1760154426480,0.54863103,112050.0,112040.0,0.2535848]
[1760154427174,0.63777783,112050.0,112040.0,0.24965546]
[1760154427679,1.03777783,112050.0,112040.0,0.13]
[1760154428480,0.53570103,112050.0,112040.0,0.2535847]
[1760154428681,0.5200595,112050.0,112040.0,0.2535847]
[1760154428882,0.48889657,112050.0,112040.0,0.2535847]
[1760154429485,0.12809657,112050.0,112040.0,0.2535847]
[1760154429677,8e-08,112050.0,112040.0,1.0143847]
[1760154429879,0.03116293,112070.0,112060.0,0.01292]
[1760154430082,0.01339739,112080.0,112070.0,0.1235608]
[1760154430282,0.01339739,112080.0,112070.0,0.2635608]
[1760154430485,0.3608,112080.0,112070.0,0.2635608]
[1760154430680,0.79702,112080.0,112070.0,0.16151]
[1760154430892,0.8861429,112080.0,112070.0,0.14]
[1760154431481,0.02329,112060.0,112050.0,0.1235705]
[1760154431784,0.09448769,112060.0,112050.0,0.2535767]
[1760154431977,0.38409,112060.0,112050.0,0.2535767]
[1760154432177,0.02329,112060.0,112050.0,0.2535767]
[1760154432688,0.38409,112070.0,112060.0,0.1235688]
[1760154432882,0.38409,112070.0,112060.0,0.2406488]
[1760154433184,0.8861508,112070.0,112060.0,0.13]
[1760154433689,0.03622,112060.0,112050.0,0.1106548]
[1760154433984,0.39702,112060.0,112050.0,0.2235748]
[1760154434186,0.02329,112060.0,112050.0,0.2235748]
[1760154434588,0.38509,112070.0,112060.0,0.1235688]
[1760154434788,0.38509,112070.0,112060.0,0.2635688]
[1760154435489,0.45507652,112070.0,112060.0,0.2635688]
[1760154435890,0.45407652,112070.0,112060.0,0.2635688]
[1760154436085,0.3608,112080.0,112070.0,0.03443]
[1760154436294,0.38409,112090.0,112080.0,0.1235529]
[1760154436585,0.3608,112100.0,112090.0,0.0891149]
[1760154436890,0.45640976,112100.0,112090.0,0.15443]
[1760154437085,0.54551676,112100.0,112090.0,0.15443]
[1760154437290,0.45640976,112100.0,112090.0,0.15443]
[1760154437590,0.55844516,112100.0,112090.0,0.14151]
[1760154437791,0.47133976,112100.0,112090.0,0.14151]
[1760154437988,0.45840976,112100.0,112090.0,0.15443]
[1760154438184,0.45840976,112100.0,112090.0,0.2435454]
[1760154438384,0.45840976,112100.0,112090.0,0.25255437]
[1760154439387,0.47133976,112100.0,112090.0,0.15051897]
[1760154439587,0.47133976,112100.0,112090.0,0.04051897]
[1760154439786,0.96044636,112100.0,112090.0,0.04051897]
[1760154440093,0.96044636,112100.0,112090.0,0.01900897]
[1760154440689,0.95844636,112100.0,112090.0,0.04051897]
[1760154440894,0.87033976,112100.0,112090.0,0.05343897]
[1760154441098,0.47033976,112100.0,112090.0,0.05343897]
[1760154441586,0.55944626,112100.0,112090.0,0.05343897]
[1760154441894,0.58469269,112100.0,112090.0,0.04051897]
[1760154442097,0.49558619,112100.0,112090.0,0.05358897]
[1760154442691,0.49558619,112100.0,112090.0,0.04051897]
[1760154442893,0.58469269,112100.0,112090.0,0.04051897]
[1760154444094,0.58469269,112100.0,112090.0,0.01900897]
[1760154446698,0.58569269,112100.0,112090.0,0.01900897]
[1760154447194,0.58569269,112100.0,112090.0,0.04134897]
[1760154448398,0.58569269,112100.0,112090.0,0.05441897]
[1760154448594,0.58569269,112100.0,112090.0,0.04134897]
[1760154449397,0.58569269,112100.0,112090.0,0.03234]
[1760154449598,0.58569269,112100.0,112090.0,0.01]
[1760154449799,0.98569269,112100.0,112090.0,0.01]
[1760154450505,0.58569269,112100.0,112090.0,0.01]
[1760154450700,0.58569269,112100.0,112090.0,0.03234]
[1760154450907,0.98569269,112100.0,112090.0,0.01]
[1760154451702,1.0325762,112100.0,112090.0,0.01]
[1760154451905,0.98569269,112100.0,112090.0,0.01]
[1760154452298,0.98569269,112100.0,112090.0,0.03234]
[1760154452700,0.98569269,112100.0,112090.0,0.01]
[1760154453207,0.98569269,112100.0,112090.0,0.03234]
[1760154453692,0.98569269,112100.0,112090.0,0.01]
[1760154454500,0.98569269,112100.0,112090.0,0.03234]
[1760154456307,0.48365619,112100.0,112090.0,0.1345252]
[1760154456606,0.58547339,112100.0,112090.0,0.01]
[1760154457201,0.58547339,112100.0,112070.0,0.1020507]
[1760154457202,0.0891165,112090.0,112070.0,0.1020507]
[1760154457402,0.02163,112080.0,112070.0,0.2443907]
[1760154457603,0.4842631,112080.0,112070.0,0.12]
[1760154457812,0.50950953,112080.0,112070.0,0.12]
[1760154458609,0.55639304,112080.0,112070.0,0.12]
[1760154459209,0.55739304,112080.0,112070.0,0.12]
[1760154459602,0.95739304,112080.0,112070.0,0.12]
[1760154459803,0.1018413,112070.0,112050.0,0.1022125]
[1760154459998,0.02163,112060.0,112050.0,0.2345525]
[1760154460206,0.04687643,112060.0,112050.0,0.2345525]
[1760154460910,0.04687643,112060.0,112050.0,0.5953525]
[1760154461107,0.04687643,112060.0,112050.0,0.6041177]
[1760154461308,0.02524643,112060.0,112050.0,0.6041177]
[1760154462305,0.04687643,112060.0,112050.0,0.6041177]
[1760154462516,0.04687643,112060.0,112050.0,0.6051177]
[1760154463212,0.02524643,112060.0,112050.0,1.0051177]
[1760154464012,0.02524643,112060.0,112050.0,1.35773739]
[1760154464413,0.02524643,112060.0,112050.0,0.95773739]
[1760154467308,0.02163,112070.0,112060.0,0.1245447]
[1760154467514,0.04582943,112070.0,112060.0,0.6153447]
[1760154468019,0.50847053,112070.0,112060.0,0.15234]
[1760154469214,0.50847053,112070.0,112060.0,0.13]
[1760154469816,0.90847053,112070.0,112060.0,0.13]
[1760154471620,0.90947053,112070.0,112060.0,0.13]
[1760154474921,0.90947053,112070.0,112040.0,0.0983144]
[1760154474922,0.03623,112050.0,112040.0,0.1200044]
[1760154475121,0.03623,112050.0,112040.0,0.2500044]
[1760154475122,0.42122943,112050.0,112040.0,0.2500044]
[1760154475313,0.42122943,112050.0,112040.0,0.2628044]
[1760154475519,0.04701943,112050.0,112040.0,0.2628044]
[1760154475719,0.40781943,112050.0,112040.0,0.2628044]
[1760154476120,0.04701943,112050.0,112040.0,0.2628044]
[1760154477324,0.04701943,112050.0,112040.0,0.2638044]
[1760154477723,0.04701943,112050.0,112040.0,0.2628044]
[1760154478023,0.02282,112050.0,112040.0,0.6628044]
[1760154478226,0.4104961,112060.0,112050.0,0.123637]
[1760154478525,0.4104961,112060.0,112050.0,0.253637]
[1760154478526,0.41049802,112060.0,112050.0,0.253637]
[1760154478716,0.04969802,112060.0,112050.0,0.253637]
[1760154478915,0.37351,112070.0,112050.0,0.653637]
[1760154479119,0.3608,112080.0,112070.0,0.089131]
[1760154479316,0.02687872,112080.0,112070.0,0.614421]
[1760154479519,0.55845716,112100.0,112090.0,0.03449]
[1760154479717,0.58534545,112100.0,112090.0,0.14169]
[1760154481129,0.98534545,112100.0,112090.0,0.12]
[1760154481329,0.98634545,112100.0,112090.0,0.12]
[1760154482620,0.0891278,112080.0,112060.0,0.0891349]
[1760154482827,0.03623,112070.0,112060.0,0.2536249]
[1760154483023,0.02282,112070.0,112060.0,0.2536249]
[1760154483217,0.02282,112070.0,112060.0,0.6144249]
[1760154484524,0.001,112070.0,112060.0,1.0144249]
[1760154485124,0.44652976,112100.0,112060.0,1.0144249]
[1760154485125,0.09513976,112100.0,112090.0,0.1019152]
[1760154485328,0.02831155,112100.0,112090.0,0.9752052]
[1760154485525,0.02282,112120.0,112110.0,0.0890993]
[1760154485725,0.05113853,112120.0,112110.0,0.6143893]
[1760154485932,0.02282,112130.0,112120.0,0.1018913]
[1760154486232,0.42509559,112130.0,112120.0,0.13]
[1760154486421,0.51417899,112130.0,112120.0,0.13]
[1760154486623,0.91417899,112130.0,112120.0,0.13]
[1760154486822,0.1253213,112120.0,112110.0,0.00872328]
[1760154487021,0.51418689,112120.0,112110.0,0.01]
[1760154487224,0.01341,112110.0,112090.0,0.1019151]
[1760154487431,0.03623,112100.0,112090.0,0.14]
[1760154487733,0.4861372,112100.0,112090.0,0.14]
[1760154487930,0.51408167,112100.0,112090.0,0.14]
[1760154488432,0.03623,112100.0,112090.0,0.16169]
[1760154488628,0.06417185,112100.0,112090.0,0.16169]
[1760154488927,0.42497141,112100.0,112090.0,0.16169]
[1760154489122,0.91407861,112100.0,112090.0,0.14]
[1760154489831,0.91507861,112100.0,112090.0,0.14]
[1760154491531,1.32895073,112100.0,112090.0,0.14]
[1760154492638,1.32895073,112100.0,112090.0,0.13892385]
[1760154492936,0.02282,112080.0,112070.0,0.1236211]
[1760154493229,0.02282,112080.0,112070.0,0.2336211]
[1760154493836,0.03623,112080.0,112070.0,0.2336211]
[1760154494728,0.15439244,112080.0,112070.0,0.13169]
[1760154495034,0.15439244,112080.0,112070.0,0.2208212]
[1760154495935,0.15439244,112080.0,112070.0,0.13169]
[1760154496335,0.51519244,112080.0,112070.0,0.11]
[1760154496536,1.32906456,112080.0,112070.0,0.11]
[1760154497033,0.91519244,112080.0,112070.0,0.11]
[1760154497232,1.32906456,112080.0,112070.0,0.11]
[1760154497833,1.33006456,112080.0,112070.0,0.11]
[1760154498234,0.91619244,112080.0,112070.0,0.11]